[Event "*** SCC Grand Prix: Titled Tuesday Blitz"]
[Site "Chess.com"]
[Date "2020.06.09"]
[Round "6"]
[White "wonderfultime"]
[Black "WIDBIFS"]
[Result "1-0"]
[WhiteElo "3000"]
[BlackElo "2690"]
[TimeControl "180+1"]
[EndTime "10:08:42 PDT"]
[Termination "wonderfultime won by resignation"]

1. d4 {[%clk 0:03:00.9]} 1... Nf6 {[%clk 0:03:00.2]} 2. Nf3 {[%clk 0:03:00.7]}
2... g6 {[%clk 0:03:00.7]} 3. Bg5 {[%clk 0:03:00.6]} 3... Bg7 {[%clk 0:03:01.4]}
4. Nbd2 {[%clk 0:03:01.1]} 4... O-O {[%clk 0:03:01.9]} 5. c3 {[%clk 0:03:00.7]}
5... d5 {[%clk 0:02:56.9]} 6. e3 {[%clk 0:03:01]} 6... b6 {[%clk 0:02:56]} 7.
Bd3 {[%clk 0:03:01.2]} 7... Ba6 {[%clk 0:02:56]} 8. Bxa6 {[%clk 0:03:00.7]} 8...
Nxa6 {[%clk 0:02:56.9]} 9. O-O {[%clk 0:03:00.3]} 9... c5 {[%clk 0:02:56.6]} 10.
Qe2 {[%clk 0:02:55.2]} 10... Nc7 {[%clk 0:02:32.9]} 11. Rfd1 {[%clk 0:02:53]}
11... Ne6 {[%clk 0:02:21.8]} 12. Bh4 {[%clk 0:02:50.4]} 12... Qc7 {[%clk
0:02:18.6]} 13. Rac1 {[%clk 0:02:43.1]} 13... Qb7 {[%clk 0:02:14.3]} 14. Bg3
{[%clk 0:02:21.2]} 14... Rfd8 {[%clk 0:02:09.3]} 15. h3 {[%clk 0:02:17.9]} 15...
Rac8 {[%clk 0:02:08.9]} 16. Ne5 {[%clk 0:02:13]} 16... Nd7 {[%clk 0:02:05.8]}
17. Ndf3 {[%clk 0:02:06.8]} 17... Nxe5 {[%clk 0:02:05.4]} 18. Bxe5 {[%clk
0:02:07.7]} 18... Bxe5 {[%clk 0:01:47.7]} 19. Nxe5 {[%clk 0:02:08.6]} 19... Ng7
{[%clk 0:01:33.7]} 20. Qf3 {[%clk 0:02:05.3]} 20... e6 {[%clk 0:01:28.8]} 21. c4
{[%clk 0:01:52.5]} 21... cxd4 {[%clk 0:01:22.8]} 22. exd4 {[%clk 0:01:44.9]}
22... Nf5 {[%clk 0:01:17.7]} 23. Ng4 {[%clk 0:01:33.6]} 23... h5 {[%clk
0:01:11.5]} 24. Ne3 {[%clk 0:01:33.5]} 24... Nxe3 {[%clk 0:01:08.4]} 25. fxe3
{[%clk 0:01:33.5]} 25... Qe7 {[%clk 0:01:04.3]} 26. cxd5 {[%clk 0:01:29.3]}
26... Rxc1 {[%clk 0:01:03.8]} 27. Rxc1 {[%clk 0:01:27.5]} 27... Rxd5 {[%clk
0:00:51.5]} 28. Qf4 {[%clk 0:01:24.7]} 28... Qg5 {[%clk 0:00:31.6]} 29. Qxg5
{[%clk 0:00:56.4]} 29... Rxg5 {[%clk 0:00:32.5]} 30. Kf2 {[%clk 0:00:57.3]}
30... a5 {[%clk 0:00:25.7]} 31. a4 {[%clk 0:00:54.5]} 31... b5 {[%clk
0:00:21.2]} 32. b3 {[%clk 0:00:51.4]} 32... bxa4 {[%clk 0:00:21.1]} 33. bxa4
{[%clk 0:00:52.3]} 33... Rd5 {[%clk 0:00:19.7]} 34. Kf3 {[%clk 0:00:45.7]} 34...
Kg7 {[%clk 0:00:16.2]} 35. Ke4 {[%clk 0:00:45.6]} 35... Kf6 {[%clk 0:00:16.4]}
36. Rc5 {[%clk 0:00:45.8]} 36... Rf5 {[%clk 0:00:04.4]} 37. g4 {[%clk
0:00:43.8]} 37... hxg4 {[%clk 0:00:03.8]} 38. hxg4 {[%clk 0:00:44.7]} 38... Rf1
{[%clk 0:00:03.8]} 39. Rxa5 {[%clk 0:00:43.8]} 39... Rg1 {[%clk 0:00:04.3]} 40.
g5+ {[%clk 0:00:41]} 40... Ke7 {[%clk 0:00:04.8]} 41. Rb5 {[%clk 0:00:34.4]}
41... Kd6 {[%clk 0:00:03.6]} 42. a5 {[%clk 0:00:32.7]} 42... Ra1 {[%clk
0:00:03.2]} 43. Rb6+ {[%clk 0:00:28.3]} 43... Kc7 {[%clk 0:00:03.5]} 44. Rb5
{[%clk 0:00:28.3]} 44... Kc6 {[%clk 0:00:03.8]} 45. Rc5+ {[%clk 0:00:27]} 45...
Kd6 {[%clk 0:00:04.4]} 46. Kf3 {[%clk 0:00:26.6]} 46... Ra2 {[%clk 0:00:04.6]}
47. Rb5 {[%clk 0:00:18.6]} 47... Kc6 {[%clk 0:00:04.9]} 48. Re5 {[%clk
0:00:11.9]} 48... Kd6 {[%clk 0:00:04.6]} 49. Ke4 {[%clk 0:00:12.1]} 49... Ra3
{[%clk 0:00:05]} 50. Kf4 {[%clk 0:00:09.6]} 50... Kc6 {[%clk 0:00:05]} 51. Kf3
{[%clk 0:00:09.6]} 51... Kd6 {[%clk 0:00:05.3]} 52. Ke2 {[%clk 0:00:09]} 52...
Kc6 {[%clk 0:00:05.8]} 53. Kd2 {[%clk 0:00:09.4]} 53... Ra1 {[%clk 0:00:05.1]}
54. Kc3 {[%clk 0:00:09.7]} 54... Kd6 {[%clk 0:00:04.1]} 55. Kc4 {[%clk
0:00:09.8]} 55... Rb1 {[%clk 0:00:02.7]} 56. Rc5 {[%clk 0:00:08.3]} 56... Ra1
{[%clk 0:00:01.4]} 57. Kb5 {[%clk 0:00:08.5]} 57... Rb1+ {[%clk 0:00:01.9]} 58.
Ka6 {[%clk 0:00:08.6]} 58... Rb3 {[%clk 0:00:02.4]} 59. Re5 {[%clk 0:00:08.6]}
59... Rb4 {[%clk 0:00:02.7]} 60. Ka7 {[%clk 0:00:08.7]} 60... Kc7 {[%clk
0:00:03.2]} 61. a6 {[%clk 0:00:08.8]} 61... Kd6 {[%clk 0:00:04.1]} 62. Ka8
{[%clk 0:00:08]} 62... Kc7 {[%clk 0:00:04.6]} 63. Rc5+ {[%clk 0:00:07.2]} 63...
Kd7 {[%clk 0:00:04.7]} 64. a7 {[%clk 0:00:07.5]} 64... Rb1 {[%clk 0:00:05.2]}
65. Rc2 {[%clk 0:00:07.1]} 65... Rb4 {[%clk 0:00:05.4]} 66. Rh2 {[%clk
0:00:07.2]} 66... e5 {[%clk 0:00:04.1]} 67. dxe5 {[%clk 0:00:05.7]} 67... Ke6
{[%clk 0:00:04.7]} 68. Rh8 {[%clk 0:00:06.3]} 68... Kxe5 {[%clk 0:00:04.9]} 69.
Rb8 {[%clk 0:00:06.8]} 69... Ra4 {[%clk 0:00:05.4]} 70. Kb7 {[%clk 0:00:07.1]}
70... Ke4 {[%clk 0:00:02.2]} 71. Re8+ {[%clk 0:00:06.5]} 71... Kf5 {[%clk
0:00:02.9]} 72. a8=Q {[%clk 0:00:06.7]} 72... Rxa8 {[%clk 0:00:03.8]} 73. Kxa8
{[%clk 0:00:06.6]} 73... Kxg5 {[%clk 0:00:04.7]} 74. Kb7 {[%clk 0:00:07.3]}
74... f5 {[%clk 0:00:05.5]} 75. Kc6 {[%clk 0:00:07.8]} 75... Kg4 {[%clk
0:00:06.4]} 76. Kd5 {[%clk 0:00:08]} 76... Kf3 {[%clk 0:00:07]} 77. Kd4 {[%clk
0:00:08.2]} 77... g5 {[%clk 0:00:07.2]} 78. Rf8 {[%clk 0:00:08.5]} 78... f4
{[%clk 0:00:07.6]} 79. exf4 {[%clk 0:00:08.2]} 79... gxf4 {[%clk 0:00:08.5]} 80.
Ke5 {[%clk 0:00:09.1]} 1-0

[Event "*** SCC Grand Prix: Titled Tuesday Blitz"]
[Site "Chess.com"]
[Date "2020.06.09"]
[Round "6"]
[White "MYMChessAcademy"]
[Black "DaggiGretarsson"]
[Result "0-1"]
[WhiteElo "2378"]
[BlackElo "2601"]
[TimeControl "180+1"]
[EndTime "10:08:46 PDT"]
[Termination "DaggiGretarsson won by resignation"]

1. e4 {[%clk 0:03:00.9]} 1... g6 {[%clk 0:02:59.8]} 2. d4 {[%clk 0:02:59.8]}
2... Bg7 {[%clk 0:03:00]} 3. Nc3 {[%clk 0:03:00.7]} 3... d6 {[%clk 0:02:59.9]}
4. Nf3 {[%clk 0:03:01.1]} 4... a6 {[%clk 0:02:59.6]} 5. Bc4 {[%clk 0:02:53.7]}
5... b5 {[%clk 0:02:56.8]} 6. Bb3 {[%clk 0:02:53.7]} 6... e6 {[%clk 0:02:55.5]}
7. Be3 {[%clk 0:02:52.8]} 7... Ne7 {[%clk 0:02:54.9]} 8. Qd2 {[%clk 0:02:51.3]}
8... h6 {[%clk 0:02:55.1]} 9. O-O {[%clk 0:02:50.6]} 9... Bb7 {[%clk 0:02:48.4]}
10. d5 {[%clk 0:02:45.5]} 10... e5 {[%clk 0:02:19.1]} 11. a4 {[%clk 0:02:39.2]}
11... f5 {[%clk 0:02:13.6]} 12. exf5 {[%clk 0:02:24.3]} 12... gxf5 {[%clk
0:02:12.6]} 13. Qd1 {[%clk 0:01:59.6]} 13... b4 {[%clk 0:02:08.5]} 14. Ne2
{[%clk 0:01:57.5]} 14... Nd7 {[%clk 0:02:02.8]} 15. c4 {[%clk 0:01:43.1]} 15...
a5 {[%clk 0:01:54.5]} 16. Nh4 {[%clk 0:01:34.1]} 16... f4 {[%clk 0:01:35.1]} 17.
Bxf4 {[%clk 0:01:17.4]} 17... exf4 {[%clk 0:01:34.6]} 18. Nxf4 {[%clk
0:01:17.9]} 18... O-O {[%clk 0:01:24.6]} 19. Ne6 {[%clk 0:01:15.5]} 19... Qe8
{[%clk 0:01:22.9]} 20. Nxc7 {[%clk 0:01:12.3]} 20... Qf7 {[%clk 0:01:21.6]} 21.
Nxa8 {[%clk 0:01:08.8]} 21... Bxa8 {[%clk 0:01:17]} 22. Bc2 {[%clk 0:01:02.1]}
22... Nc5 {[%clk 0:01:09.8]} 23. Qe2 {[%clk 0:00:53.5]} 23... Qf6 {[%clk
0:01:01.9]} 24. g3 {[%clk 0:00:46.5]} 24... Bb7 {[%clk 0:00:59.9]} 25. Rae1
{[%clk 0:00:45.8]} 25... Rf7 {[%clk 0:00:59.8]} 26. f4 {[%clk 0:00:26.3]} 26...
Qxb2 {[%clk 0:00:54.3]} 27. Ng6 {[%clk 0:00:13.8]} 27... Nxg6 {[%clk 0:00:45.7]}
28. Bxg6 {[%clk 0:00:14.7]} 28... Qxe2 {[%clk 0:00:45.3]} 29. Bxf7+ {[%clk
0:00:14.5]} 29... Kxf7 {[%clk 0:00:45.6]} 30. Rxe2 {[%clk 0:00:15.4]} 30... Nxa4
{[%clk 0:00:43.8]} 31. Ra2 {[%clk 0:00:13.2]} 31... Nc5 {[%clk 0:00:31.5]} 32.
Rxa5 {[%clk 0:00:13]} 32... b3 {[%clk 0:00:31.6]} 33. Rb5 {[%clk 0:00:11.6]}
33... Ba6 {[%clk 0:00:30.8]} 34. Rb8 {[%clk 0:00:09.9]} 34... Bxc4 {[%clk
0:00:30.6]} 35. Re1 {[%clk 0:00:07.3]} 35... Bxd5 {[%clk 0:00:29.1]} 36. Rd1
{[%clk 0:00:04.4]} 36... Be4 {[%clk 0:00:21]} 37. Rxd6 {[%clk 0:00:03.3]} 37...
b2 {[%clk 0:00:21.3]} 38. Rdb6 {[%clk 0:00:02.5]} 38... Nd7 {[%clk 0:00:20.2]}
39. Rxb2 {[%clk 0:00:01.8]} 39... Bd4+ {[%clk 0:00:18.9]} 40. Kf1 {[%clk
0:00:01.4]} 40... Bd3+ {[%clk 0:00:18]} 41. Ke1 {[%clk 0:00:01.1]} 41... Bc3+
{[%clk 0:00:17.2]} 42. Kf2 {[%clk 0:00:01.6]} 42... Bd4+ {[%clk 0:00:17.2]} 43.
Kf3 {[%clk 0:00:01.6]} 43... Nxb8 {[%clk 0:00:16.7]} 44. Rxb8 {[%clk 0:00:01.9]}
44... Bc4 {[%clk 0:00:16.7]} 45. Rb7+ {[%clk 0:00:02.2]} 45... Kf6 {[%clk
0:00:16.1]} 46. Rb4 {[%clk 0:00:02.8]} 46... Bd5+ {[%clk 0:00:15.8]} 47. Ke2
{[%clk 0:00:03.3]} 47... Bg1 {[%clk 0:00:15.3]} 48. Kd3 {[%clk 0:00:03.3]} 48...
Bxh2 {[%clk 0:00:14.8]} 49. Kd4 {[%clk 0:00:03.6]} 49... Be6 {[%clk 0:00:14.3]}
50. Ke4 {[%clk 0:00:02.6]} 50... Bxg3 {[%clk 0:00:13.7]} 51. Rb6 {[%clk
0:00:02.1]} 51... Bf2 {[%clk 0:00:11.7]} 52. Rc6 {[%clk 0:00:01.6]} 52... Ke7
{[%clk 0:00:11.4]} 53. f5 {[%clk 0:00:01.7]} 53... Bd7 {[%clk 0:00:11.3]} 54.
Rxh6 {[%clk 0:00:02.6]} 54... Be1 {[%clk 0:00:11.1]} 55. Ke5 {[%clk 0:00:02.7]}
55... Bc3+ {[%clk 0:00:10.7]} 56. Kd5 {[%clk 0:00:03.2]} 56... Bxf5 {[%clk
0:00:09.9]} 57. Rh7+ {[%clk 0:00:02.9]} 57... Bxh7 {[%clk 0:00:09.5]} 58. Kc4
{[%clk 0:00:03.8]} 58... Bf6 {[%clk 0:00:09.2]} 59. Kd5 {[%clk 0:00:04.6]} 59...
Kd7 {[%clk 0:00:08.9]} 60. Kc5 {[%clk 0:00:04.7]} 60... Be4 {[%clk 0:00:07.9]}
61. Kc4 {[%clk 0:00:04.8]} 61... Kc6 {[%clk 0:00:07.8]} 62. Kb4 {[%clk
0:00:04.2]} 62... Bd3 {[%clk 0:00:06.8]} 63. Ka4 {[%clk 0:00:03.8]} 63... Kb6
{[%clk 0:00:06.1]} 64. Kb4 {[%clk 0:00:04.1]} 64... Bd4 {[%clk 0:00:05]} 65. Ka4
{[%clk 0:00:05]} 65... Bc4 {[%clk 0:00:04.2]} 66. Kb4 {[%clk 0:00:05.9]} 66...
Bd5 {[%clk 0:00:04.1]} 67. Ka4 {[%clk 0:00:06.2]} 67... Bc3 {[%clk 0:00:03.6]}
68. Ka3 {[%clk 0:00:06]} 68... Ba5 {[%clk 0:00:01.8]} 69. Ka4 {[%clk 0:00:06.9]}
69... Ka6 {[%clk 0:00:01.8]} 70. Ka3 {[%clk 0:00:07.1]} 70... Kb5 {[%clk
0:00:02.2]} 71. Kb2 {[%clk 0:00:06]} 71... Kc4 {[%clk 0:00:02.6]} 72. Kc2 {[%clk
0:00:06.4]} 72... Kd4 {[%clk 0:00:02.2]} 73. Kd1 {[%clk 0:00:07.3]} 73... Kd3
{[%clk 0:00:02]} 74. Kc1 {[%clk 0:00:07.6]} 74... Bc3 {[%clk 0:00:02.5]} 75. Kb1
{[%clk 0:00:08.5]} 75... Bb3 {[%clk 0:00:02.7]} 76. Kc1 {[%clk 0:00:09]} 76...
Bb4 {[%clk 0:00:02.8]} 77. Kb1 {[%clk 0:00:09.4]} 77... Bc4 {[%clk 0:00:03.3]}
78. Kc1 {[%clk 0:00:10.3]} 78... Bc3 {[%clk 0:00:03.3]} 79. Kb1 {[%clk
0:00:11.2]} 79... Bb3 {[%clk 0:00:03.6]} 80. Kc1 {[%clk 0:00:12.1]} 80... Kc4
{[%clk 0:00:03.5]} 81. Kb1 {[%clk 0:00:13]} 81... Kb4 {[%clk 0:00:04]} 82. Kc1
{[%clk 0:00:13.9]} 82... Ka3 {[%clk 0:00:04.4]} 83. Kb1 {[%clk 0:00:14.8]} 83...
Bd2 {[%clk 0:00:04.8]} 84. Ka1 {[%clk 0:00:14.7]} 84... Bc4 {[%clk 0:00:05]} 85.
Kb1 {[%clk 0:00:13.7]} 85... Bd3+ {[%clk 0:00:05.4]} 0-1

[Event "*** SCC Grand Prix: Titled Tuesday Blitz"]
[Site "Chess.com"]
[Date "2020.06.09"]
[Round "6"]
[White "Chess_Boxer123"]
[Black "NateSolon"]
[Result "0-1"]
[WhiteElo "2709"]
[BlackElo "2533"]
[TimeControl "180+1"]
[EndTime "10:08:55 PDT"]
[Termination "NateSolon won by resignation"]

1. e4 {[%clk 0:03:00.9]} 1... c5 {[%clk 0:02:59.8]} 2. Nf3 {[%clk 0:02:59.7]}
2... e6 {[%clk 0:02:59.8]} 3. g3 {[%clk 0:02:59.4]} 3... Nc6 {[%clk 0:02:59.5]}
4. Bg2 {[%clk 0:02:59.3]} 4... Nf6 {[%clk 0:02:59.4]} 5. Nc3 {[%clk 0:02:59]}
5... d5 {[%clk 0:02:56.8]} 6. exd5 {[%clk 0:02:59.1]} 6... exd5 {[%clk
0:02:55.7]} 7. d4 {[%clk 0:02:59.3]} 7... cxd4 {[%clk 0:02:50.3]} 8. Nxd4 {[%clk
0:02:58]} 8... Bb4 {[%clk 0:02:50]} 9. O-O {[%clk 0:02:57.2]} 9... O-O {[%clk
0:02:45.7]} 10. Nce2 {[%clk 0:02:47]} 10... h6 {[%clk 0:02:41.4]} 11. a3 {[%clk
0:02:43.9]} 11... Bc5 {[%clk 0:02:35.1]} 12. b4 {[%clk 0:02:43.8]} 12... Bb6
{[%clk 0:02:32.5]} 13. h3 {[%clk 0:02:41.9]} 13... a5 {[%clk 0:02:18.9]} 14. b5
{[%clk 0:02:06.3]} 14... Ne5 {[%clk 0:02:17.9]} 15. a4 {[%clk 0:02:03.2]} 15...
Re8 {[%clk 0:02:13.5]} 16. c3 {[%clk 0:02:01.8]} 16... Bd7 {[%clk 0:02:08.3]}
17. Bf4 {[%clk 0:01:56.5]} 17... Rc8 {[%clk 0:02:04]} 18. Rc1 {[%clk 0:01:55.4]}
18... Qe7 {[%clk 0:01:57.5]} 19. Re1 {[%clk 0:01:47.3]} 19... Qa3 {[%clk
0:01:55.3]} 20. Qc2 {[%clk 0:01:17.5]} 20... Nc4 {[%clk 0:01:48.3]} 21. Ra1
{[%clk 0:01:04.8]} 21... Qc5 {[%clk 0:01:45.8]} 22. Kh2 {[%clk 0:00:59]} 22...
Ne4 {[%clk 0:01:43.2]} 23. Bxe4 {[%clk 0:00:36.1]} 23... dxe4 {[%clk 0:01:42.3]}
24. Rac1 {[%clk 0:00:24.9]} 24... Qh5 {[%clk 0:01:40.6]} 25. Ng1 {[%clk
0:00:24.1]} 25... Bxd4 {[%clk 0:00:47.6]} 26. cxd4 {[%clk 0:00:25]} 26... e3
{[%clk 0:00:32.6]} 27. f3 {[%clk 0:00:21.7]} 27... Nd2 {[%clk 0:00:28.6]} 28.
Qd1 {[%clk 0:00:19.1]} 28... Rxc1 {[%clk 0:00:27.8]} 29. Qxc1 {[%clk 0:00:20]}
29... Nxf3+ {[%clk 0:00:22.1]} 30. Nxf3 {[%clk 0:00:19.8]} 30... Qxf3 {[%clk
0:00:20.7]} 31. Qc2 {[%clk 0:00:18.1]} 31... Rc8 {[%clk 0:00:18.1]} 32. Qg2
{[%clk 0:00:17.4]} 32... Qxg2+ {[%clk 0:00:15.4]} 33. Kxg2 {[%clk 0:00:18.3]}
33... Rc2+ {[%clk 0:00:15.7]} 34. Kf3 {[%clk 0:00:18.4]} 34... Bxh3 {[%clk
0:00:13]} 35. Kxe3 {[%clk 0:00:18.1]} 35... Be6 {[%clk 0:00:12.5]} 36. Ke4
{[%clk 0:00:15.3]} 36... Ra2 {[%clk 0:00:11]} 37. d5 {[%clk 0:00:14.8]} 37...
Rxa4+ {[%clk 0:00:10.9]} 38. Ke5 {[%clk 0:00:15.4]} 38... Bd7 {[%clk 0:00:11.1]}
39. b6 {[%clk 0:00:14]} 39... Rb4 {[%clk 0:00:10.2]} 40. Kd6 {[%clk 0:00:14.5]}
40... Bf5 {[%clk 0:00:08.8]} 41. Kc7 {[%clk 0:00:13.2]} 41... a4 {[%clk
0:00:05.3]} 42. d6 {[%clk 0:00:13.4]} 42... Rc4+ {[%clk 0:00:04.4]} 43. Kxb7
{[%clk 0:00:13.3]} 43... a3 {[%clk 0:00:04.7]} 44. Re8+ {[%clk 0:00:10.8]} 44...
Kh7 {[%clk 0:00:04.4]} 45. Re2 {[%clk 0:00:10.1]} 45... Bb1 {[%clk 0:00:02.3]}
46. d7 {[%clk 0:00:07.8]} 46... Rd4 {[%clk 0:00:02.8]} 47. Kc7 {[%clk
0:00:08.2]} 47... a2 {[%clk 0:00:03]} 48. Rxa2 {[%clk 0:00:07]} 48... Bxa2
{[%clk 0:00:03.9]} 49. d8=Q {[%clk 0:00:07.9]} 49... Rxd8 {[%clk 0:00:03.5]} 50.
Kxd8 {[%clk 0:00:08.8]} 50... Bd5 {[%clk 0:00:02.7]} 51. Ke7 {[%clk 0:00:08.7]}
51... g5 {[%clk 0:00:02.7]} 52. Be5 {[%clk 0:00:05.9]} 52... Kg6 {[%clk
0:00:03.5]} 53. Kd6 {[%clk 0:00:03.9]} 53... Bg2 {[%clk 0:00:02.5]} 54. Kc5
{[%clk 0:00:04]} 54... f6 {[%clk 0:00:03.1]} 55. Bc7 {[%clk 0:00:04]} 55... h5
{[%clk 0:00:03.6]} 56. Kd4 {[%clk 0:00:04]} 56... h4 {[%clk 0:00:03.8]} 57. gxh4
{[%clk 0:00:04.9]} 57... gxh4 {[%clk 0:00:04.7]} 58. Ke3 {[%clk 0:00:05.3]}
58... Kf5 {[%clk 0:00:04.5]} 59. Kf2 {[%clk 0:00:06.2]} 59... Bb7 {[%clk
0:00:04.5]} 60. Kg1 {[%clk 0:00:07.1]} 60... Kg4 {[%clk 0:00:05.2]} 61. Kh2
{[%clk 0:00:08]} 61... f5 {[%clk 0:00:06.1]} 62. Kg1 {[%clk 0:00:07.5]} 62... f4
{[%clk 0:00:07]} 63. Kf2 {[%clk 0:00:08]} 63... Bc6 {[%clk 0:00:07.2]} 64. Kg1
{[%clk 0:00:07.8]} 64... Kg3 {[%clk 0:00:07.3]} 65. Bd6 {[%clk 0:00:07.9]} 65...
h3 {[%clk 0:00:07.2]} 66. Bxf4+ {[%clk 0:00:07.6]} 66... Kxf4 {[%clk 0:00:08.1]}
67. b7 {[%clk 0:00:08]} 67... Bxb7 {[%clk 0:00:07.7]} 68. Kh2 {[%clk 0:00:08.6]}
68... Bc8 {[%clk 0:00:08.6]} 69. Kg1 {[%clk 0:00:09.5]} 69... Kg3 {[%clk
0:00:09.1]} 70. Kh1 {[%clk 0:00:09.9]} 70... Bb7+ {[%clk 0:00:08.8]} 71. Kg1
{[%clk 0:00:10.3]} 71... h2+ {[%clk 0:00:09.7]} 72. Kf1 {[%clk 0:00:10.3]} 72...
h1=Q+ {[%clk 0:00:10.6]} 73. Ke2 {[%clk 0:00:11.2]} 73... Qf3+ {[%clk
0:00:10.7]} 74. Kd2 {[%clk 0:00:11.6]} 74... Kf4 {[%clk 0:00:11.6]} 75. Kc2
{[%clk 0:00:12.5]} 75... Qe3 {[%clk 0:00:11.8]} 76. Kb2 {[%clk 0:00:11.7]} 76...
Ke4 {[%clk 0:00:12.7]} 77. Ka1 {[%clk 0:00:11.6]} 77... Kd4 {[%clk 0:00:13.6]}
78. Kb2 {[%clk 0:00:11.5]} 78... Qd2+ {[%clk 0:00:13.6]} 79. Ka1 {[%clk
0:00:12.4]} 79... Kc3 {[%clk 0:00:12.8]} 0-1